bitfinex-derivatives/quotes_SOLF0:USTF0_20250614
["timestamp","ask_amount","ask_price","bid_price","bid_amount"]
[1749859990773,6.7415,148.27,148.23,41.6631]
[1749859991281,6.7415,148.27,148.23,34.92]
[1749859991573,0.0508239,148.28,148.23,34.92]
[1749859992277,0.0508239,148.28,148.24,4.5734]
[1749859992483,0.0508239,148.28,148.27,6.7414]
[1749859993184,0.0508239,148.28,148.26,6.7417]
[1749859993589,0.0508239,148.28,148.24,4.5734]
[1749859993885,0.0508239,148.28,148.27,6.7414]
[1749859996581,6.7918239,148.28,148.24,4.5734]
[1749859996780,0.0508239,148.28,148.24,4.5734]
[1749859999090,0.0508239,148.28,148.26,6.7416]
[1749859999484,0.0508239,148.28,148.24,4.5734]
[1749859999790,0.0508239,148.28,148.24,2.3418]
[1749859999992,0.0508239,148.28,148.23,34.92]
[1749860000383,5.35874675,148.27,148.23,34.92]
[1749860000992,6.7422,148.26,148.23,34.92]
[1749860001582,0.0508239,148.28,148.23,34.92]
[1749860001787,9.90451678,148.27,148.2,44.03]
[1749860001987,6.78872628,148.25,148.2,44.03]
[1749860002291,0.04622628,148.25,148.2,44.03]
[1749860002493,0.04622628,148.25,148.2,35.02]
[1749860002892,5.40598426,148.25,148.2,35.02]
[1749860003085,6.7429,148.24,148.2,35.02]
[1749860003287,0.04622628,148.25,148.2,35.02]
[1749860003696,6.7429,148.24,148.2,35.02]
[1749860003888,6.7429,148.24,148.2,41.7646]
[1749860004088,0.04622628,148.25,148.2,35.02]
[1749860004391,5.40752744,148.25,148.2,35.02]
[1749860004591,0.04622628,148.25,148.2,41.7645]
[1749860004893,6.78892628,148.25,148.2,41.7645]
[1749860005083,0.04622628,148.25,148.2,41.7645]
[1749860006393,5.39474947,148.25,148.2,41.7645]
[1749860006693,47.35957483,148.24,148.13,37.284]
[1749860006889,0.0468309,148.2,148.13,37.284]
[1749860007093,6.746,148.17,148.13,44.0315]
[1749860007293,0.04764246,148.16,148.13,37.284]
[1749860007497,0.04923468,148.16,148.14,6.7473]
[1749860007896,0.04923468,148.16,148.13,37.284]
[1749860008099,6.79593468,148.16,148.13,37.284]
[1749860008485,0.04923468,148.16,148.13,37.284]
[1749860009396,0.04923468,148.16,148.13,44.0315]
[1749860009900,0.04923468,148.16,148.14,6.7473]
[1749860010906,0.04923468,148.16,148.13,44.0316]
[1749860012203,0.04923468,148.16,148.14,6.7473]
[1749860012404,0.04923468,148.16,148.13,37.284]
[1749860014011,0.04923468,148.16,148.13,44.0316]
[1749860014908,0.04923468,148.16,148.14,6.7472]
[1749860015110,0.04923468,148.16,148.13,37.284]
[1749860015313,6.79573468,148.16,148.13,44.0315]
[1749860015512,0.04923468,148.16,148.13,37.284]
[1749860016410,37.3615,148.24,148.13,37.284]
[1749860016614,6.7454,148.19,148.15,6.7466]
[1749860017314,0.0442512,148.18,148.16,0.0474627]
[1749860017712,0.0442512,148.18,148.16,6.7938627]
[1749860017912,6.7897512,148.18,148.16,0.0474627]
[1749860018217,0.0442512,148.18,148.16,0.0474627]
[1749860018711,0.0442512,148.18,148.16,6.7935627]
[1749860019918,0.0442512,148.18,148.17,6.746]
[1749860020618,0.0442512,148.18,148.16,6.7937627]
[1749860021021,0.0442512,148.18,148.16,0.0474627]
[1749860021213,0.0442512,148.18,148.17,6.746]
[1749860022212,0.0442512,148.18,148.17,42.206]
[1749860022612,0.0442512,148.18,148.17,35.46]
[1749860023816,0.0442512,148.18,148.17,42.206]
[1749860027725,6.7432,148.24,148.17,35.46]
[1749860027923,35.46,148.26,148.17,35.46]
[1749860028120,6.7426,148.25,148.17,35.46]
[1749860028322,35.46,148.26,148.21,6.7438]
[1749860028722,6.7431,148.24,148.22,0.04868551]
[1749860030229,6.7433,148.23,148.22,0.04868551]
[1749860030930,6.7429,148.24,148.22,0.04868551]
[1749860031526,0.0434895,148.25,148.22,6.79238551]
[1749860031527,6.7859895,148.25,148.22,6.79238551]
[1749860031727,6.7859895,148.25,148.22,0.04868551]
[1749860032130,6.7859895,148.25,148.22,6.79218551]
[1749860032736,6.7428,148.24,148.22,0.04868551]
[1749860034933,6.7428,148.24,148.22,6.79238551]
[1749860035234,6.7860895,148.25,148.22,6.79238551]
[1749860037633,0.0434895,148.25,148.22,6.79238551]
[1749860039230,4.54515681,148.24,148.22,6.79238551]
[1749860039440,6.7858895,148.25,148.22,6.79238551]
[1749860039735,4.54515682,148.24,148.22,6.79238551]
[1749860040032,6.7858895,148.25,148.22,6.79238551]
[1749860040434,0.0434895,148.25,148.22,6.79238551]
[1749860040635,0.0434895,148.25,148.23,6.7432]
[1749860040837,0.0434895,148.25,148.22,0.04868551]
[1749860041031,6.7858895,148.25,148.22,0.04868551]
[1749860041936,6.7858895,148.25,148.22,6.79208551]
[1749860043437,0.0434895,148.25,148.22,0.04868551]
[1749860043943,0.0434895,148.25,148.24,6.7428]
[1749860044235,35.44,148.33,148.23,2.2663]
[1749860044441,5.33849239,148.32,148.23,2.2663]
[1749860044738,35.44,148.33,148.23,2.2663]
[1749860044937,5.33573339,148.32,148.23,2.2663]
[1749860045141,5.33573339,148.32,148.28,6.7407]
[1749860045339,0.04972425,148.29,148.28,6.7407]
[1749860047139,0.04972425,148.29,148.27,35.44]
[1749860048843,0.04972425,148.29,148.27,42.1814]
[1749860049844,0.04972425,148.29,148.27,35.44]
[1749860050040,6.79032425,148.29,148.27,35.44]
[1749860050744,0.04972425,148.29,148.27,35.44]
[1749860052448,6.79032425,148.29,148.27,35.44]
[1749860052648,0.04972425,148.29,148.27,35.44]
[1749860059345,6.79032425,148.29,148.27,35.44]
[1749860060247,6.741,148.28,148.26,0.04443357]
[1749860060448,0.04972425,148.29,148.26,0.04443357]
[1749860061750,6.7414,148.27,148.26,0.04443357]
[1749860064346,6.7425,148.25,148.21,35.0]
[1749860064653,35.0,148.29,148.18,35.0]
[1749860064842,6.7435,148.23,148.19,6.7449]
[1749860065440,0.04967122,148.22,148.2,0.05026832]
[1749860065753,6.79347122,148.22,148.2,0.05026832]
[1749860067340,0.04967122,148.22,148.2,0.05026832]
[1749860068150,0.04967122,148.22,148.21,6.7442]
[1749860091179,0.04967122,148.22,148.21,41.3442]
[1749860098276,0.00523765,148.22,148.21,41.3442]
[1749860101188,0.00523765,148.22,148.21,43.4933]
[1749860101385,12.59189691,148.35,148.21,43.4933]
[1749860101386,5.3484231,148.28,148.27,6.7414]
[1749860101586,5.3484231,148.28,148.26,34.6]
[1749860101787,6.7397,148.31,148.26,34.6]
[1749860101981,5.34832472,148.3,148.28,6.7407]
[1749860102178,5.34832472,148.29,148.28,6.7407]
[1749860103088,5.34832472,148.29,148.27,6.79005579]
[1749860103287,6.78274126,148.3,148.27,6.79005579]
[1749860103485,5.3480194,148.29,148.27,6.79005579]
[1749860103685,5.3480194,148.29,148.28,6.741]
[1749860104487,0.04264126,148.3,148.28,6.741]
[1749860104690,5.34735793,148.29,148.28,6.741]
[1749860105288,5.34735793,148.29,148.27,6.79005579]
[1749860105588,0.04264126,148.3,148.27,6.79005579]
[1749860106890,6.78284126,148.3,148.27,6.79005579]
[1749860109496,0.04264126,148.3,148.27,6.79005579]
[1749860109686,5.3910514,148.3,148.27,6.79005579]
[1749860110383,6.78274126,148.3,148.27,6.79005579]
[1749860111291,4.74446021,148.29,148.27,6.79005579]
[1749860111492,6.78274126,148.3,148.27,6.79005579]
[1749860111896,4.74446109,148.29,148.27,6.79005579]
[1749860112096,6.78274126,148.3,148.27,6.79005579]
[1749860112295,4.74449081,148.29,148.27,6.79005579]
[1749860112494,6.78274126,148.3,148.27,6.79005579]
[1749860112690,4.74449081,148.29,148.27,6.79005579]
[1749860112895,6.78274126,148.3,148.27,6.79005579]
[1749860113196,12.56010756,148.29,148.27,0.04885579]
[1749860113397,2.222,148.29,148.27,0.04885579]
[1749860113895,8.9627,148.29,148.27,0.04885579]
[1749860114100,2.222,148.29,148.27,0.04885579]
[1749860114702,0.04264126,148.3,148.27,0.04885579]
[1749860115198,5.39039736,148.3,148.27,0.04885579]
[1749860115395,0.04264126,148.3,148.27,0.04885579]
[1749860115794,12.13058216,148.3,148.27,0.04885579]
[1749860116089,6.78294126,148.3,148.27,6.79015579]
[1749860116293,6.78294126,148.3,148.27,0.04885579]
[1749860117507,6.7407,148.29,148.27,0.04885579]
[1749860118306,6.741,148.28,148.27,0.04885579]
[1749860119208,12.09176087,148.28,148.27,0.04885579]
[1749860119404,6.7408,148.29,148.27,0.04885579]
[1749860128310,0.04264126,148.3,148.27,6.79015579]
[1749860128508,0.04264126,148.3,148.27,0.04885579]
[1749860128711,5.3914566,148.3,148.27,0.04885579]
[1749860128910,0.04264126,148.3,148.27,0.04885579]
[1749860129311,5.3917256,148.3,148.27,0.04885579]
[1749860129615,6.78304126,148.3,148.27,0.04885579]
[1749860133718,6.7405,148.29,148.27,0.04885579]
[1749860134822,6.741,148.28,148.27,0.04885579]
[1749860135015,5.35212236,148.28,148.23,34.42]
[1749860135217,6.29587101,148.31,148.23,34.42]
[1749860135415,14.70098344,148.3,148.23,34.42]
[1749860135619,9.93429945,148.29,148.23,34.42]
[1749860135819,12.09344474,148.28,148.25,6.7423]
[1749860136022,6.79213795,148.28,148.25,6.78618287]
[1749860136619,6.7415,148.27,148.25,0.04388287]
[1749860136815,0.05113795,148.28,148.19,388.32]
[1749860136816,5.34948869,148.26,148.2,34.42]
[1749860137014,6.7431,148.24,148.2,41.1643]
[1749860137214,6.7431,148.24,148.2,34.42]
[1749860137419,2.1592,148.27,148.2,34.42]
[1749860137611,6.7427,148.25,148.21,6.7439]
[1749860137822,6.7427,148.25,148.22,0.04492053]
[1749860137823,0.04543685,148.24,148.22,0.04492053]
[1749860138415,5.39525923,148.24,148.22,0.04492053]
[1749860138612,0.04543685,148.24,148.22,6.78852053]
[1749860139920,0.04543685,148.24,148.22,0.04492053]
[1749860140919,6.78833685,148.24,148.22,0.04492053]
[1749860141517,6.7432,148.23,148.22,0.04492053]
[1749860143125,11.32946495,148.23,148.22,0.04492053]
[1749860143324,6.7432,148.23,148.22,0.04492053]
[1749860143727,11.32951417,148.23,148.22,0.04492053]
[1749860144027,6.7432,148.23,148.22,0.04492053]
[1749860144327,11.32950497,148.23,148.22,0.04492053]
[1749860144632,6.7432,148.23,148.22,0.04492053]
[1749860146326,0.04543685,148.24,148.22,0.04492053]
[1749860149028,0.04543685,148.24,148.22,6.78852053]
[1749860149228,0.04543685,148.24,148.22,0.04492053]
[1749860150630,0.04543685,148.24,148.22,6.78852053]
[1749860151332,0.04543685,148.24,148.22,0.04492053]
[1749860152933,6.78853685,148.24,148.22,0.04492053]
[1749860153135,0.04543685,148.24,148.22,0.04492053]
[1749860153935,6.78843685,148.24,148.22,0.04492053]
[1749860154134,0.04543685,148.24,148.22,0.04492053]
[1749860155634,0.04543685,148.24,148.22,6.78852053]
[1749860155835,0.04543685,148.24,148.22,0.04492053]
[1749860156333,0.04543685,148.24,148.22,6.78832053]
[1749860161043,0.04543685,148.24,148.23,6.7432]
[1749860177157,0.04543685,148.24,148.22,6.78842053]
[1749860177445,0.04543685,148.24,148.22,0.04492053]
[1749860183952,6.78823685,148.24,148.22,0.04492053]
[1749860184152,0.04543685,148.24,148.22,0.04492053]
[1749860184355,6.78843685,148.24,148.22,0.04492053]
[1749860184955,0.04543685,148.24,148.22,0.04492053]
[1749860185157,6.78823685,148.24,148.22,0.04492053]
[1749860186258,6.7432,148.23,148.22,0.04492053]
[1749860188061,6.78833685,148.24,148.22,0.04492053]
[1749860190462,6.7432,148.23,148.22,0.04492053]
[1749860200679,6.78803685,148.24,148.22,0.04492053]
[1749860202883,0.04543685,148.24,148.22,0.04492053]
[1749860203579,0.04543685,148.24,148.22,6.78812053]
[1749860203884,0.04543685,148.24,148.22,0.04492053]
[1749860205287,6.78783685,148.24,148.22,0.04492053]
[1749860205888,0.04543685,148.24,148.22,0.04492053]
[1749860208891,0.04543685,148.24,148.23,6.7429]
[1749860211891,3.685e-05,148.24,148.23,6.7429]
[1749860212088,3.685e-05,148.24,148.23,21.87078061]
[1749860212890,3.685e-05,148.24,148.23,13.4829]
[1749860213290,2.1946,148.33,148.26,0.49996315]
[1749860213492,2.1946,148.33,148.27,34.4]
[1749860213893,2.1946,148.33,148.3,6.7397]
[1749860214294,2.24251358,148.33,148.3,6.78683859]
[1749860215300,2.24251358,148.33,148.31,6.7392]
[1749860218103,0.04791358,148.33,148.31,6.7392]
[1749860218407,0.04791358,148.33,148.32,6.7388]
[1749860224606,1.358e-05,148.33,148.32,6.7388]
[1749860240212,1.358e-05,148.33,148.32,8.9322]
[1749860241620,1.358e-05,148.33,148.32,17.9545]
[1749860242514,2.3541,148.43,148.4,6.7348]
[1749860242714,2.3541,148.43,148.4,34.34]
[1749860243517,2.40005706,148.43,148.4,34.39054239]
[1749860244020,0.04595706,148.43,148.4,34.39054239]
[1749860244319,0.04595706,148.43,148.41,6.7345]
[1749860245114,0.04595706,148.43,148.4,41.12554239]
[1749860245315,6.77975706,148.43,148.4,41.12554239]
[1749860247821,0.04595706,148.43,148.41,6.7347]
[1749860248120,0.04595706,148.43,148.4,34.39054239]
[1749860248319,0.04595706,148.43,148.4,41.12554239]
[1749860248517,0.04595706,148.43,148.4,34.39054239]
[1749860249321,0.04595706,148.43,148.4,41.12564239]
[1749860249717,6.77985706,148.43,148.4,34.39054239]
[1749860249919,0.04595706,148.43,148.4,0.05054239]
[1749860250130,4.6313,148.42,148.37,34.34]
[1749860250423,6.736,148.39,148.35,6.7372]
[1749860250619,4.6313,148.42,148.34,34.34]
[1749860250926,4.6313,148.42,148.36,6.7367]
[1749860251124,0.04910362,148.39,148.37,0.04782727]
[1749860255128,6.78500362,148.39,148.37,0.04782727]
[1749860256227,0.04910362,148.39,148.37,0.04782727]
[1749860256818,6.78480362,148.39,148.37,0.04782727]
[1749860257223,0.04910362,148.39,148.37,0.04782727]
[1749860259926,6.78480362,148.39,148.37,0.04782727]
[1749860260832,0.04910362,148.39,148.37,6.78412727]
[1749860261334,0.04910362,148.39,148.37,0.04782727]
[1749860262737,0.04910362,148.39,148.37,6.78432727]
[1749860263140,0.04910362,148.39,148.37,0.04782727]
[1749860263635,6.78480362,148.39,148.37,0.04782727]
[1749860264235,0.04910362,148.39,148.37,0.04782727]
[1749860264623,5.38135565,148.39,148.37,0.04782727]
[1749860264935,0.04910362,148.39,148.37,0.04782727]
[1749860265830,6.7361,148.38,148.37,0.04782727]
[1749860266532,6.78490362,148.39,148.37,0.04782727]
[1749860266832,5.33615756,148.38,148.37,0.04782727]
[1749860267938,12.07225756,148.38,148.37,0.04782727]
[1749860268641,6.7384,148.33,148.31,34.3]
[1749860268846,4.4772,148.37,148.31,34.3]
[1749860269142,6.7388,148.32,148.28,429.0605]
[1749860269444,34.3,148.36,148.28,34.3]
[1749860269642,6.7388,148.32,148.31,0.04793144]
[1749860269844,0.04495805,148.33,148.28,34.3]
[1749860270442,6.74,148.3,148.28,34.3]
[1749860270844,0.04614609,148.3,148.28,34.3]
[1749860271549,6.78584609,148.3,148.28,34.3]
[1749860271850,6.78584609,148.3,148.26,6.7412]
[1749860273246,6.78584609,148.3,148.27,6.741]
[1749860273449,0.04614609,148.3,148.27,6.741]
[1749860274845,6.78614609,148.3,148.26,6.7414]
[1749860275354,6.78614609,148.3,148.25,34.32]
[1749860275650,0.04614609,148.3,148.27,6.7408]
[1749860276249,6.78614609,148.3,148.26,6.7414]
[1749860278053,6.78614609,148.3,148.27,6.7411]
[1749860278546,0.04614609,148.3,148.25,34.32]
[1749860278746,0.04614609,148.3,148.25,41.0619]
[1749860279246,0.04614609,148.3,148.25,34.32]
[1749860279751,0.04614609,148.3,148.22,34.32]
[1749860279946,0.04315925,148.27,148.18,127.85469307]
[1749860280256,6.7429,148.23,148.19,41.0645]
[1749860280451,0.05103427,148.24,148.19,34.32]
[1749860280850,0.05103427,148.24,148.22,6.7432]
[1749860282452,0.05103427,148.24,148.23,6.7429]
[1749860282844,0.05103427,148.24,148.23,41.0829]
[1749860301661,0.05103427,148.24,148.2,34.32]
[1749860302264,0.05103427,148.24,148.18,134.59959307]
[1749860302662,6.7438,148.22,148.18,134.59959307]
[1749860303267,6.7438,148.22,148.18,127.85469307]
[1749860303465,6.7439,148.21,148.18,127.85469307]
[1749860303663,6.79132691,148.21,148.18,127.85469307]
[1749860303863,6.79132691,148.21,148.17,34.32]
[1749860304165,6.7443,148.2,148.17,34.32]
[1749860304870,6.7448,148.19,148.17,34.32]
[1749860307472,0.04742691,148.21,148.17,34.32]
[1749860307660,7.0560189,148.2,148.14,34.32]
[1749860307860,4.58762811,148.19,148.14,34.32]
[1749860308066,4.63614716,148.18,148.14,34.32]
[1749860308365,0.04829786,148.18,148.14,34.32]
[1749860309872,6.746,148.17,148.14,34.32]
[1749860310372,0.04829786,148.18,148.14,41.067]
[1749860310773,6.79369786,148.18,148.14,41.067]
[1749860310974,0.04829786,148.18,148.14,34.32]
[1749860311472,0.04829786,148.18,148.15,6.7461]
[1749860311870,6.79349786,148.18,148.15,6.7461]
[1749860312074,0.04829786,148.18,148.15,6.7461]
[1749860312664,0.04829786,148.18,148.16,6.7456]
[1749860314178,0.04829786,148.18,148.17,6.7456]
[1749860314571,2.1619,148.23,148.14,34.32]
[1749860314769,6.2374353,148.29,148.14,34.32]
[1749860314770,36.5664,148.27,148.21,6.7434]
[1749860314970,6.7423,148.25,148.21,6.7434]
[1749860315276,36.5664,148.27,148.2,6.7441]
[1749860315475,6.7429,148.23,148.2,6.7441]
[1749860315780,6.78596505,148.23,148.2,6.79239786]
[1749860316477,0.04306505,148.23,148.2,6.79239786]
[1749860318080,6.78606505,148.23,148.2,6.79239786]
[1749860318375,0.04306505,148.23,148.2,6.79239786]
[1749860320670,6.78596505,148.23,148.2,6.79239786]
[1749860321481,6.78596505,148.23,148.2,0.04829786]
[1749860322078,0.04306505,148.23,148.2,0.04829786]
[1749860322672,6.7438,148.21,148.2,0.04829786]
[1749860326277,0.04306505,148.23,148.2,0.04829786]
[1749860326680,0.04306505,148.23,148.2,6.79219786]
[1749860328687,6.78606505,148.23,148.2,6.79219786]
[1749860331988,0.04306505,148.23,148.2,34.94829786]
[1749860332388,0.04306505,148.23,148.22,6.7434]
[1749860337193,6.7413,148.27,148.2,34.94829786]
[1749860337194,86.10605322,148.31,148.27,6.7409]
[1749860337391,2.1631,148.31,148.27,6.7409]
[1749860337591,2.1631,148.31,148.25,34.9]
[1749860337791,5.41960586,148.3,148.25,34.9]
[1749860338189,0.05171808,148.29,148.26,0.04962738]
[1749860338491,6.79211808,148.29,148.26,6.79092738]
[1749860339793,0.05171808,148.29,148.26,0.04962738]
[1749860341084,5.43542058,148.28,148.21,41.6234]
[1749860341287,2.3535,148.27,148.21,41.6234]
[1749860341489,2.3535,148.27,148.21,34.88]
[1749860341891,6.7425,148.24,148.21,41.6236]
[1749860342195,6.7881359,148.24,148.21,41.66533553]
[1749860344095,0.0456359,148.24,148.21,41.66533553]
[1749860345198,6.7881359,148.24,148.21,41.66533553]
[1749860345392,0.0456359,148.24,148.21,0.04173553]
[1749860345895,6.7434,148.22,148.21,0.04173553]
[1749860351392,12.16108051,148.22,148.21,0.04173553]
[1749860352101,6.7434,148.22,148.21,0.04173553]
[1749860352293,12.16122779,148.22,148.21,0.04173553]
[1749860352495,12.16123958,148.22,148.21,0.04173553]
[1749860352693,6.7447,148.19,148.18,34.88]
[1749860353502,6.7456,148.18,148.15,34.9]
[1749860353701,6.79071905,148.18,148.15,34.9]
[1749860354806,6.79071905,148.18,148.15,41.6464]
[1749860355202,6.7458,148.17,148.15,34.9]
[1749860357005,6.79041905,148.18,148.15,34.9]
[1749860357608,6.79041905,148.18,148.15,41.6464]
[1749860358008,0.04511905,148.18,148.15,34.9]
[1749860358205,0.04511905,148.18,148.17,6.7456]
[1749860363105,0.04511905,148.18,148.16,6.7459]
[1749860363310,0.04511905,148.18,148.15,34.9]
[1749860363716,6.79031905,148.18,148.15,41.6463]
[1749860364209,0.04511905,148.18,148.15,34.9]
[1749860364417,0.04511905,148.18,148.17,6.7456]
[1749860364710,0.04511905,148.18,148.15,34.9]
[1749860365100,0.04511905,148.18,148.16,6.7458]
[1749860366013,0.04511905,148.18,148.17,6.7456]
[1749860374418,0.00338352,148.18,148.17,6.7456]
[1749860377314,0.00338352,148.18,148.17,41.4856]
[1749860377720,2.2723,148.25,148.22,6.7432]
[1749860379018,2.31894907,148.25,148.22,6.78831905]
[1749860380722,9.06094907,148.25,148.22,6.78831905]
[1749860381620,6.7425,148.24,148.22,0.04511905]
[1749860381922,5.34615454,148.23,148.18,34.74]
[1749860382222,2.2723,148.25,148.16,34.74]
[1749860382424,6.7434,148.22,148.16,34.74]
[1749860382620,34.74,148.24,148.16,34.74]
[1749860382811,6.79534563,148.2,148.16,41.4857]
[1749860384021,6.7448,148.19,148.16,34.74]
[1749860384524,6.7448,148.19,148.15,6.7464]
[1749860385825,6.7448,148.19,148.16,6.7461]
[1749860386026,6.78751545,148.19,148.16,6.7461]
[1749860386926,6.78751545,148.19,148.15,6.7464]
[1749860387725,6.7453,148.18,148.15,6.7464]
[1749860388026,0.04271545,148.19,148.15,6.7464]
[1749860388227,6.78781545,148.19,148.15,6.7464]
[1749860389233,6.78781545,148.19,148.16,6.7461]
[1749860390430,0.04271545,148.19,148.17,6.7456]
[1749860393138,0.04271545,148.19,148.16,6.7459]
[1749860394643,0.04271545,148.19,148.17,6.7456]
[1749860396242,6.78741545,148.19,148.16,6.7459]
[1749860396944,6.7452,148.18,148.13,34.74]
[1749860397144,0.04271545,148.19,148.13,34.74]
[1749860397546,0.04271545,148.19,148.15,6.7463]
[1749860397747,0.04271545,148.19,148.13,34.74]
[1749860398639,6.7452,148.18,148.14,6.7467]
[1749860400943,6.7457,148.17,148.13,41.4873]
[1749860401244,0.04271545,148.19,148.13,41.4873]
[1749860401442,6.7459,148.17,148.13,41.4873]
[1749860403141,0.04271545,148.19,148.13,34.74]
[1749860403348,9.99452184,148.18,148.13,34.74]
[1749860403644,0.04271545,148.19,148.13,34.74]
[1749860403855,6.7458,148.17,148.13,41.4872]
[1749860404649,6.7458,148.17,148.14,6.747]
[1749860406061,0.04271545,148.19,148.13,34.74]
[1749860406349,5.37604696,148.19,148.13,34.74]
[1749860406553,6.7459,148.17,148.13,41.4871]
[1749860406742,6.7459,148.17,148.13,34.74]
[1749860407748,6.7459,148.17,148.14,6.747]
[1749860409746,6.7462,148.16,148.13,41.4873]
[1749860410055,6.79715941,148.16,148.13,41.4873]
[1749860411051,0.05095941,148.16,148.14,6.747]
[1749860412358,0.05095941,148.16,148.15,6.7465]
[1749860413353,0.05095941,148.16,148.14,6.7468]
[1749860414662,0.05095941,148.16,148.15,6.7465]
[1749860432273,6.79705941,148.16,148.13,34.74]
[1749860433174,6.79705941,148.16,148.13,41.4872]
[1749860433374,6.7466,148.15,148.13,34.74]
[1749860433576,0.05095941,148.16,148.1,42.77870647]
[1749860433778,0.05095941,148.16,148.1,34.38]
[1749860433966,6.7473,148.14,148.11,6.7483]
[1749860434771,6.7473,148.14,148.1,34.38]
[1749860435279,0.05095941,148.16,148.1,34.38]
[1749860436680,6.7477,148.13,148.1,41.1288]
[1749860436878,6.79488711,148.13,148.1,41.1288]
[1749860437767,0.04718711,148.13,148.1,41.1288]
[1749860437973,0.04718711,148.13,148.1,34.38]
[1749860438383,0.04718711,148.13,148.07,431.33870647]
[1749860438880,0.04718711,148.13,148.07,422.94]
[1749860439075,0.04718711,148.13,148.07,431.33870647]
[1749860439280,0.04718711,148.13,148.07,422.94]
[1749860439776,0.04718711,148.13,148.07,34.38]
[1749860440274,6.7491,148.1,148.07,41.1301]
[1749860440480,6.79223322,148.1,148.07,41.1301]
[1749860442082,6.79223322,148.1,148.07,34.38]
[1749860442279,6.7494,148.09,148.07,34.38]
[1749860444479,6.79213322,148.1,148.07,34.38]
[1749860444776,0.04313322,148.1,148.07,34.38]
[1749860445273,6.7495,148.09,148.07,34.38]
[1749860445775,0.04313322,148.1,148.07,41.1301]
[1749860445973,6.79223322,148.1,148.07,41.1301]
[1749860446476,6.79223322,148.1,148.07,34.38]
[1749860447983,6.79223322,148.1,148.07,41.1301]
[1749860448183,0.04313322,148.1,148.07,41.1301]
[1749860449783,6.79203322,148.1,148.07,41.1301]
[1749860451883,6.7497,148.08,148.07,34.38]
[1749860452080,0.04313322,148.1,148.07,34.38]
[1749860452486,0.04313322,148.1,148.08,6.7496]
[1749860452791,0.04313322,148.1,148.07,34.38]
[1749860454789,6.7493,148.09,148.05,6.751]
[1749860455089,0.04313322,148.1,148.05,6.751]
[1749860455283,0.04313322,148.1,148.04,41.1314]
[1749860455683,6.7505,148.07,148.04,34.38]
[1749860455878,6.80059541,148.07,148.04,34.38]
[1749860456682,6.80059541,148.07,148.04,41.1314]
[1749860459789,0.05009541,148.07,148.04,41.1314]
[1749860460891,6.80029541,148.07,148.04,34.38]
[1749860461292,0.05009541,148.07,148.04,34.38]
[1749860461491,0.05009541,148.07,148.06,6.7506]
[1749860461886,2.3109,148.15,148.05,0.04498352]
[1749860462190,29.22500309,148.32,148.11,6.7481]
[1749860462191,2.3227,148.18,148.11,6.7481]
[1749860462386,2.3227,148.18,148.11,34.38]
[1749860462789,2.3227,148.18,148.1,6.7485]
[1749860462983,0.04778264,148.15,148.13,0.04465695]
[1749860463691,6.7473,148.14,148.13,0.04465695]
[1749860466494,6.748,148.12,148.08,41.1294]
[1749860467398,0.0439589,148.11,148.08,41.1294]
[1749860467797,0.0439589,148.11,148.09,6.7491]
[1749860467998,0.0439589,148.11,148.08,34.38]
[1749860468501,0.0439589,148.11,148.1,6.7488]
[1749860470195,0.0439589,148.11,148.08,34.38]
[1749860470602,6.7923589,148.11,148.08,34.38]
[1749860472806,0.0439589,148.11,148.08,41.1297]
[1749860473602,6.7924589,148.11,148.08,41.1297]
[1749860476507,6.7494,148.09,148.05,41.131]
[1749860476711,0.04978761,148.08,148.05,34.38]
[1749860477814,6.79968761,148.08,148.05,34.38]
[1749860478618,6.7502,148.07,148.05,34.38]
[1749860486731,6.79968761,148.08,148.05,34.38]
[1749860487230,0.04978761,148.08,148.05,34.38]
[1749860487726,0.04978761,148.08,148.05,41.131]
[1749860488029,6.79958761,148.08,148.05,41.131]
[1749860488931,6.79958761,148.08,148.05,34.38]
[1749860489429,6.7503,148.07,148.05,34.38]
[1749860497135,6.79968761,148.08,148.05,34.38]
[1749860498436,0.04978761,148.08,148.05,34.38]
[1749860500429,0.04978761,148.08,148.06,6.7504]
[1749860501841,0.04978761,148.08,148.07,6.7502]
[1749860504338,0.04978761,148.08,148.05,34.38]